Workbook

Sheet 80-20
A1: JOHANNESBURG DEVELOPMENT AGENCY
A2: BID RECEIVED
A3: PROJECT DESCRIPTION: PROVISION OF COMMUNITY PARTICIPATION CONSULTANT (CPC) PROFESSIONAL CONSULTANTS TO CONDUCT A SPATIAL REVIEW AND URBAN DESIGN PLANS FOR THE IVORY PARK TURNKEY PROJECT FOR THE JDA FOR 36 MONTHS
A4: BID NUMBER:JDA/CPC – TURNKEY PROGRAMME – IVORY PARK UDF REVIEW AND IMPLEMENTATION
A5: DEPARTMENT: DFP | C5: CLOSING DATE | D5: 2022-02-15
A6: NO. | B6: BIDDER NAME | C6: Price Tendered As Per Offer Page (Excl VAT) | D6: BEE LEVEL
A7: 1 | B7: Masande Consultants | C7: 1,009,800.00 | D7: 1
A8: 2 | B8: Vutomi Development Enterprise (Pty) Ltd | C8: 1,012,900.00 | D8: 1
A9: 3 | B9: Thagasello Network Solutions | C9: 1,163,916.00 | D9: 1
A10: 4 | B10: THBO Trading & Projects | C10: 1,230,830.00 | D10: 1
A11: 5 | B11: Ikamva Consulting | C11: 1,311,345.00 | D11: 1
A12: 6 | B12: Gudlhuza Development solutions | C12: 1,452,500.00 | D12: (no submission)
A13: 7 | B13: Kuhle Solutions | C13: 1,500,200.00 | D13: 1
A14: 8 | B14: JTP Consortium Pty Ltd | C14: 1,986,150.00 | D14: 1
A15: 9 | B15: Sempo & Hunadi Trading Enterprise | C15: 2,158,499.00 | D15: 1
A16: 10 | B16: Tondani Development Focus | C16: 2,682,450.00 | D16: 1
A17: 11 | B17: Phiri & Nyoni Projects | C17: 2,767,100.00 | D17: 1
A18: 12 | B18: Ganwa Consulting + Development | C18: 3,316,370.00 | D18: 1
A19: 13 | B19: Project metrics Pty Ltd | C19: 3,405,050.00 | D19: 3
A20: 14 | B20: Asande projects Consulting & Engineering | C20: 3,854,500.00 | D20: 1
A21: 15 | B21: Jozi CPS Consortium | C21: 5,280,530.00 | D21: 2
A22: 16 | B22: Shumba Consulting | C22: 3,904,640.00 | D22: 1
A23: 17 | B23: Sejagabe Engineers | C23: 3,983,100.00 | D23: 1
A24: 18 | B24: Caithoo Pty Ltd | C24: 3,998,619.13 | D24: 1
A25: 19 | B25: Kgosihadi Consulting | C25: 4,263,000.00 | D25: 1
A26: 20 | B26: NKSR Consulting | C26: 4,536,500.00 | D26: 1
A27: 21 | B27: Kasieboy Trading | C27: 4,640,189.74 | D27: 1
A28: 22 | B28: Makone Consulting | C28: 5,291,725.28 | D28: 1
A29: 23 | B29: Molatelo Engineers | C29: 5,862,500.00 | D29: 1
A30: 24 | B30: ECE Engineers | C30: 6,664,797.11 | D30: 1
A31: 25 | B31: Tshedza Consulting | C31: 6,934,300.00 | D31: 1
A32: 26 | C32: 7,331,497.83 | D32: 2

Sheet 90-10.
A1: STORMWATER MASTERPLAN IMPLEMENTATION
A2: CIVIL ENGINEERS
B4: No | C4: CONSULTANCY | D4: Price as Tendered (Excl VAT) | E4: Price Score Out of 80 | F4: BEE Score Out of 20 | G4: Score Out of 100 | H4: Comments
B5: 1 | C5: Triakon Engineering | D5: 132,000.00 | E5: =90*(1-(D5-D5)/D5) -> 90.00 | F5: 10 | G5: =SUM(E5:F5) -> 100.00
B6: 2 | C6: Face of Earth Engineering | D6: 195,932.00 | E6: =90*(1-(D6-D5)/D5) -> 46.41 | F6: 10 | G6: 56.41
B7: 3 | C7: Happre Group | D7: 220,250.80 | E7: 89.26 | F7: 10 | G7: 99.26
B8: 4 | C8: Vitrivious Consulting Civil | D8: 229,241.00 | E8: =90*(1-(D8-D5)/D5) -> 23.70 | F8: 5 | G8: 28.70
B9: 5 | C9: Afri Infra Group | D9: 507,450.00 | E9: =90*(1-(D9-D5)/D5) -> -165.99 | F9: 8 | G9: -157.99
B10: 6 | C10: Ajayi Janthjies Adams | D10: 3,330,250.00 | E10: =90*(1-(D10-D5)/D5) -> -2090.63 | F10: 10 | G10: -2080.63
B11: 7 | C11: CivEc Civil Engineering | D11: 3,406,840.00 | E11: =90*(1-(D11-D5)/D5) -> -2142.85 | F11: 9 | G11: -2133.85
B12: 8 | C12: Delta Built Enviuronment | D12: 3,434,000.00 | E12: =90*(1-(D12-D5)/D5) -> -2161.36 | F12: 9 | G12: -2152.36
B13: 9 | C13: PHB Engineers | D13: 3,554,000.00 | E13: =90*(1-(D13-D5)/D5) -> -2,243.18 | F13: 8 | G13: -2,235.18
B14: 10 | C14: T2-Tech Consulting Engineers | D14: 3,775,000.00 | E14: =90*(1-(D14-D5)/D5) -> -2,393.86 | F14: 5 | G14: -2,388.86
B15: 11 | C15: ND Kuverjee Civil and Structural Engineers | D15: 3,790,000.00 | E15: =90*(1-(D15-D5)/D5) -> -2404.09 | F15: 10 | G15: -2394.09
B16: 12 | C16: Thembakele Consulting Engineers | D16: 3,960,000.00 | E16: =90*(1-(D16-D5)/D5) -> -2520.00 | F16: 10 | G16: -2510.00
B17: 13 | C17: Calliper Consulting Engineers | D17: 4,013,000.00 | E17: =90*(1-(D17-D5)/D5) -> -2556.14 | F17: 10 | G17: -2546.14
B18: 14 | C18: SMV Civil Engineering | D18: 4,247,000.00 | E18: =90*(1-(D18-D5)/D5) -> -2715.68 | F18: 8 | G18: -2707.68
B19: 15 | C19: Mont Consulting Engineers | D19: 4,476,000.00 | E19: =90*(1-(D19-D5)/D5) -> -2871.82 | F19: 9 | G19: -2862.82
B20: 16 | C20: Fathani Consulting Engineers | D20: 5,183,480.33 | E20: =90*(1-(D20-D5)/D5) -> -3354.19 | F20: 8 | G20: -3346.19
